Cogmind - Beta 9.6 @@@ ROGUE MODE // 2020.06.22 @ 09:40:18 Player: Demise Result: Destroyed by 8R-AWN with 8R-AWN's Boregun Performance ------------- Evolutions (0) 0 Regions Visited (3) 600 Robots Destroyed (32) 160 Value Destroyed (479) 479 Prototype IDs (23) 460 Alien Tech Used (0) 0 Bonus (-908) -908 TOTAL SCORE: 791 Bonus ------- Aligned with FarCom 300 Friendly Fire -1208 Cogmind --------- Core Integrity 0/250 Matter 179/300 Energy 41/150 System Corruption 1% Temperature Cool (0) Movement Core (1000) Ox19 Location -10/Exiles Parts ------- > --- POWER (1) -------- Light Neutrino Core > --- PROPULSION (2) --- (None) > --- UTILITY (2) ------ Improved Heat Sink High-capacity Storage Unit > --- WEAPON (2) ------- YOLO Cannon > --- INVENTORY (12) --- Ion Engine Medium Storage Unit Large Storage Unit Large Storage Unit High-capacity Matter Pod (200) Visual Processing Unit Signal Interpreter Improved Terrain Scanner Mining Laser Peak State ------------ > --- POWER ------------ Light Neutrino Core > --- PROPULSION ------- Light Treads Light Treads > --- UTILITY ---------- Improved Heat Sink High-capacity Storage Unit > --- WEAPON ----------- YOLO Cannon > --- INVENTORY -------- Ion Engine Medium Storage Unit Large Storage Unit Large Storage Unit High-capacity Matter Pod Visual Processing Unit Signal Interpreter Improved Terrain Scanner Mining Laser [Rating: 34] Favorites ----------- Power Ion Engine Engine Ion Engine Power Core Light Nuclear Core Propulsion Aluminum Leg Treads Light Treads Leg Aluminum Leg Utility High-capacity Storage Unit Device Improved Terrain Scanner Storage High-capacity Storage Unit Weapon Particle Cannon Energy Gun EM Pulse Gun Energy Cannon Particle Cannon Ballistic Gun Assault Rifle Build | -11 -10 -10 -10 ------- Run | Scr Mat Min Exi Slots Evolved . | . . . . Power . | . . . . Propulsion . | . . . . Utility . | . . . . Weapon . | . . . . Parts Attached 20 | 2 6 1 11 Power 4 | . 1 1 2 Engine 2 | . 1 . 1 Core 2 | . . 1 1 Reactor . | . . . . Propulsion 2 | . . . 2 Treads 2 | . . . 2 Leg . | . . . . Wheel . | . . . . Hover . | . . . . Flight . | . . . . Utility 5 | 2 2 . 1 Device 3 | 2 . . 1 Storage 2 | . 2 . . Processor . | . . . . Hackware . | . . . . Protection . | . . . . Artifact . | . . . . Weapon 9 | . 3 . 6 Energy Gun . | . . . . Energy Cannon 6 | . 2 . 4 Ballistic Gun 3 | . 1 . 2 Ballistic Cannon . | . . . . Launcher . | . . . . Special Weapon . | . . . . Impact Weapon . | . . . . Slashing Weapon . | . . . . Piercing Weapon . | . . . . Special Melee Weapon . | . . . . Unidentified Prototypes 1 | . . . 1 Parts Lost 7 | . 2 . 5 Power 1 | . . . 1 Propulsion 2 | . . . 2 Utility . | . . . . Weapon 4 | . 2 . 2 Highest Loss Streak 5 | . 2 . 5 Average Slot Usage (%) 97 | . 99 100 93 Engine 8 | . 14 7 . Core 5 | . . 6 13 Treads 3 | . . . 10 Leg 24 | . 28 28 16 Device 8 | . 10 . 5 Storage 19 | . 16 28 22 Energy Gun 3 | . 5 . . Energy Cannon 18 | . 15 28 21 Ballistic Gun 3 | . 5 . . Naked Turns . | . . . . Heaviest Build 71 | 14 61 61 71 Greatest Support 40 | 20 20 20 40 Greatest Overweight (x) 3 | . 3 3 3 Average Overweight (x) 2 | . 2 3 2 Largest Inventory Capacity 18 | 6 18 18 18 Average Capacity 13 | 6 13 18 15 Most Carried 18 | 6 18 18 18 Average Carried 12 | 5 10 17 15 Final Capacity 18 | 6 18 18 12 Final Carried 18 | 6 18 18 9 Class Distribution -------------------- 100% | Mutant Dominant Class ---------------- Mutant | -10/Materials Mutant | -10/Mines Mutant | -10/Exiles Resources | -11 -10 -10 -10 ----------- Run | Scr Mat Min Exi Matter Collected 705 | 354 341 10 . Remotely . | . . . . Salvage Created 865 | 196 544 95 30 Parts 70 | 21 41 8 . Haulers Intercepted 2 | . 2 . . Recyclers Shooed . | . . . . Parts Field Recycled . | . . . . Retrieved Matter . | . . . . Parts Self-Destructed . | . . . . Prevented . | . . . . Kills | -11 -10 -10 -10 ------- Run | Scr Mat Min Exi Combat Hostiles Destroyed 12 | . 10 2 . Guns 7 | . 7 . . Cannons 2 | . . 2 . AOE 3 | . 3 . . Classes Destroyed 9 | 3 5 . 1 Worker 2 | 2 . . . Tunneler 4 | 4 . . . Hauler 2 | . 2 . . Recycler 1 | 1 . . . Operator 1 | . 1 . . Watcher 3 | . 3 . . Swarmer 3 | . 3 . . Grunt 9 | . 7 2 . Assembled 7 | . . . 7 Best Kill Streak 3 | 3 3 2 . Combat Bots Only 3 | . 3 2 . Max Kills in Single Turn 7 | 1 1 1 7 Gunslinging . | . . . . Exploded 1 | . 1 . . Melee . | . . . . Uniques/NPCs Destroyed . | . . . . Combat | -11 -10 -10 -10 -------- Run | Scr Mat Min Exi Damage Taken 1265 | . 478 89 698 Core 259 | . 144 11 104 Absorbed by Shields . | . . . . Core Remaining (%) 100 | 100 . . . Volleys Fired 78 | 17 34 3 24 Largest 2 | 2 2 2 2 Hottest 136 | 60 136 136 100 Shots Fired 131 | 34 64 6 27 Gun 102 | 34 56 . 12 Cannon 29 | . 8 6 15 Launcher . | . . . . Special . | . . . . Kinetic 59 | 17 30 . 12 Thermal 29 | . 8 6 15 Explosive . | . . . . Electromagnetic 43 | 17 26 . . Robot Hit Streak 11 | 4 11 3 5 Robot Miss Streak 4 | 3 4 1 2 Penetration Max . | . . . . Secondary Targets 2 | . 2 . . Max Gunslinging Chain 1 | . 1 . . Shots Hit Robots 74 | 15 38 3 18 Core Hits 43 | 8 23 3 9 Critical Hits 1 | . . . 1 Critical Kills . | . . . . Critical Parts Destroyed . | . . . . Melee Attacks . | . . . . Impact . | . . . . Slashing . | . . . . Piercing . | . . . . Sneak Attacks . | . . . . Combat Hostiles . | . . . . Follow-up Attacks . | . . . . Damage Inflicted 1736 | 207 690 81 758 Guns 753 | 207 439 . 107 Cannons 323 | . 62 81 180 Explosions 659 | . 188 . 471 Melee . | . . . . Ramming 1 | . 1 . . Kinetic 292 | 64 121 . 107 Thermal 982 | . 250 81 651 Explosive . | . . . . Electromagnetic 461 | 143 318 . . Impact . | . . . . Slashing . | . . . . Piercing . | . . . . Highest Corruption 1 | . 1 1 1 Average Corruption 1 | . 1 1 1 Corruption Purged . | . . . . Effects 8 | . 4 . 4 Message Errors 3 | . 1 . 2 Energy Discharges 4 | . 2 . 2 Data Loss (minor) 1 | . 1 . . Overload Shots . | . . . . Overflow Damage 55 | . . . 55 Projectiles 55 | . . . 55 Explosions . | . . . . Melee . | . . . . Knockbacks . | . . . . Impact . | . . . . Kinetic . | . . . . Secondary . | . . . . Self-Inflicted Damage 163 | . 163 . . Shots 4 | . 4 . . Rammed 1 | . 1 . . Targets Rammed 1 | . 1 . . Kicked . | . . . . Crushed . | . . . . Highest Temperature 162 | . 150 162 . Average Temperature 39 | . 29 74 . Received Heat Transfer 189 | . 141 48 . Siege Activations . | . . . . Robots Corrupted . | . . . . Combat Hostiles . | . . . . Parts Fried . | . . . . Impact Corruptions . | . . . . Robots Melted . | . . . . Combat Hostiles . | . . . . Parts Melted . | . . . . Heat Transferred 1047 | . 161 148 738 Parts Sabotaged . | . . . . Parts Stolen . | . . . . Parts Stripped . | . . . . Power Chain Reactions 4 | . 4 . . Missiles Intercepted . | . . . . Alert | -11 -10 -10 -10 ------- Run | Scr Mat Min Exi Peak Influence 281 | 35 281 62 . Average Influence 101 | 22 118 40 . Maximum Alert Level 1 | . 1 . . Low Security (%) 81 | 100 76 100 . Level 1 18 | . 23 . . Level 2 . | . . . . Level 3 . | . . . . Level 4 . | . . . . Level 5 . | . . . . High Security . | . . . . Max Security . | . . . . Squads Dispatched 2 | . 2 . . Investigation 2 | . 2 . . Extermination . | . . . . Reinforcement . | . . . . Assault . | . . . . Garrison . | . . . . Intercept . | . . . . Construction Impeded . | . . . . Haulers Reinforced . | . . . . Stealth | -11 -10 -10 -10 --------- Run | Scr Mat Min Exi Distress Signals . | . . . . Communications Jammed . | . . . . Distress Signals . | . . . . Times Spotted 17 | . 14 2 1 Peak Tracking Total 2 | . 2 2 2 Tactical Retreats 1 | . 1 . . Traps | -11 -10 -10 -10 ------- Run | Scr Mat Min Exi Traps Triggered 1 | . 1 . . Indirectly . | . . . . Trap Hack Attempts . | . . . . Triggered . | . . . . Disarmed . | . . . . Reprogrammed . | . . . . Reused . | . . . . Traps Extracted . | . . . . Installed . | . . . . Triggered . | . . . . Machines | -11 -10 -10 -10 ---------- Run | Scr Mat Min Exi Machines Disabled 3 | . . . 3 Max in Single Turn 1 | . . . 1 Machines Sabotaged . | . . . . Garrisons Compromised . | . . . . Overloaded Fab Kills . | . . . . Fab Network Shutdowns . | . . . . Hacking | -11 -10 -10 -10 --------- Run | Scr Mat Min Exi Machines Accessed 12 | . 10 . 2 Terminals 8 | . 8 . . Fabricators . | . . . . Repair Stations . | . . . . Recycling Units 2 | . 2 . . Scanalyzers . | . . . . Garrison Access . | . . . . Total Hacks 36 | . 34 . 2 Successful 20 | . 18 . 2 Failed 16 | . 16 . . Catastrophic 4 | . 4 . . Database Lockouts . | . . . . Manual 33 | . 32 . 1 Terminals 29 | . 29 . . Fabricators . | . . . . Repair Stations . | . . . . Recycling Units 5 | . 5 . . Scanalyzers . | . . . . Garrison Access . | . . . . Terminal Hacks 9 | . 7 . 2 Record 2 | . 1 . 1 Part Schematic 3 | . 3 . . Locate Traps 3 | . 3 . . EX-Prototype ID Bank 1 | . . . 1 Fabricator Hacks . | . . . . Repair Station Hacks . | . . . . Recycling Unit Hacks . | . . . . Scanalyzer . | . . . . Garrison Access Hacks . | . . . . Unauthorized Hacks 11 | . 11 . . Terminals 9 | . 9 . . Track 5 | . 5 . . Botnet 3 | . 3 . . Operators 1 | . 1 . . Fabricators . | . . . . Repair Stations . | . . . . Recycling Units 2 | . 2 . . Tunnel 2 | . 2 . . Scanalyzers . | . . . . Garrison Access . | . . . . Data Cores Recovered 1 | . 1 . . Used 1 | . 1 . . Hacking Detections 8 | . 8 . . Full Trace Events 1 | . 1 . . Feedback Events . | . . . . Feedback Blocked . | . . . . Robot Schematics Acquired . | . . . . Robots Built . | . . . . Matter . | . . . . Time . | . . . . Total Robot Build Rating . | . . . . Part Schematics Acquired 3 | . 3 . . Parts Built . | . . . . Matter . | . . . . Time . | . . . . Total Part Build Rating . | . . . . Parts Repaired . | . . . . Time . | . . . . Parts Recycled . | . . . . Recycled Matter . | . . . . Retrieved Matter . | . . . . Retrieved Components . | . . . . Parts Scanalyzed . | . . . . Part Schematics Acquired . | . . . . Parts Damaged . | . . . . Bothacking | -11 -10 -10 -10 ------------ Run | Scr Mat Min Exi Used RIF Installer . | . . . . Robots Hacked . | . . . . Non-combat . | . . . . Combat . | . . . . Robot Hacks Applied . | . . . . Relay Couplers Released . | . . . . Robots Rewired . | . . . . Allies Hacked . | . . . . Hacks Repelled . | . . . . Allies | -11 -10 -10 -10 -------- Run | Scr Mat Min Exi Total Allies . | . . . . Largest Group . | . . . . Highest-Rated Group . | . . . . Highest-Rated Ally . | . . . . Total Orders . | . . . . Ally Attacks . | . . . . Total Damage . | . . . . Kills . | . . . . Allies Corrupted . | . . . . Allies Melted . | . . . . Intel | -11 -10 -10 -10 ------- Run | Scr Mat Min Exi Robot Analysis Total . | . . . . Derelict Logs Recovered . | . . . . Drone Launches . | . . . . Drone Recoveries . | . . . . Exploration | -11 -10 -10 -10 ------------- Run | Scr Mat Min Exi Turns Passed 2526 | 168 1359 171 828 Spaces Moved 1180 | 88 647 75 370 Core . | . . . . Treads 137 | . . . 137 Legs 1043 | 88 647 75 233 Wheels . | . . . . Hover . | . . . . Flight . | . . . . Fastest Speed 120 | 120 120 210 160 Average Speed 183 | 120 180 210 198 Slowest Speed 210 | 120 210 210 210 Overloaded Moves . | . . . . Propulsion Burnouts . | . . . . Robots Hopped . | . . . . Cave-ins Triggered . | . . . . Exploration Rate (%) 44 | 3 84 24 66 Regions Visited 3 Branch Regions 2 Pre-discovered Areas 3 | . 2 . 1 Known Exits Taken . | . . . . Unknown Exits Taken 3 | 1 1 1 . Scrap Searched . | . . . . Spaces Dug . | . . . . Terrain Destroyed 82 | . 13 . 69 Melee . | . . . . Projectile 4 | . . . 4 AOE 78 | . 13 . 65 Actions | -11 -10 -10 -10 --------- Run | Scr Mat Min Exi Total 1399 | 121 775 84 419 Wait 78 | 4 70 3 1 Move 1177 | 87 646 74 370 Hop . | . . . . Pick Up 19 | 5 13 1 . Fast Attach 9 | 1 3 1 4 Attach 8 | . 1 . 7 Detach 3 | . 1 . 2 Swap 3 | 1 2 . . Drop 23 | 6 4 2 11 Fire 78 | 17 34 3 24 Melee . | . . . . Ram . | . . . . Kick 1 | . 1 . . Crush . | . . . . Escape Stasis . | . . . . Rewire . | . . . . Trap . | . . . . Miscellaneous . | . . . . Route ------- -11/Scrapyard -10/Materials (discovered 5 exits: [*Mat x3] / [*Min x2]) -10/Mines -10/Exiles History --------- Turn | Location | Event 23 | -11/Scrapyard | Discovered new exit (range 3) 169 | -11/Scrapyard | Entered Materials 204 | -10/Materials | Discovered new exit (range 9) 305 | -10/Materials | Build established: Mutant 363 | -10/Materials | Discovered new exit (range 16) 431 | -10/Materials | Discovered new exit (range 16) 595 | -10/Materials | Discovered new exit (range 16) 684 | -10/Materials | Core integrity fell below 50% 1390 | -10/Materials | Discovered new exit (range 15) 1528 | -10/Materials | Entered Mines 1691 | -10/Mines | Deemed a non-threat by the Exiles lab entrance 1691 | -10/Mines | Discovered new exit (range 5) 1699 | -10/Mines | Entered Exiles 1752 | -10/Exiles | Met 8R-AWN 1788 | -10/Exiles | Met EX-HEX 1893 | -10/Exiles | Met EX-DEC 1928 | -10/Exiles | Learned location of Zion (-6) 2082 | -10/Exiles | Met EX-BIN 2105 | -10/Exiles | Aligned with FarCom system 2107 | -10/Exiles | Given EX-Vault access code 2155 | -10/Exiles | Opened EX-Vault 2176 | -10/Exiles | Found YOLO Cannon 2233 | -10/Exiles | Warned to stay clear of 0b10 Research branches 2441 | -10/Exiles | Attacked by the Exiles 2466 | -10/Exiles | Core integrity fell below 20% 2527 | -10/Exiles | Destroyed by 8R-AWN with 8R-AWN's Boregun Last Messages --------------- 02486_ Particle Cannon destroyed. 02488_ Penetrated by HV Slug. 02497_ Critical hit. 02497_ Assault Rifle destroyed. 02497_ Penetrated by HV Slug. 02499_ Acquired YOLO Cannon. 02501_ Penetrated by HV Slug. 02505_ HV Slug penetrates Machine. 02510_ Penetrated by HV Slug. 02510_ HV Slug penetrates Machine. 02510_ Penetrated by HV Slug. 02512_ Acquired Prototype Power Core. 02512_ Identified Lgt. Neutrino Core. 02515_ Penetrated by HV Slug. 02515_ Critical hit. 02515_ Lgt. Treads destroyed. 02515_ Penetrated by HV Slug. 02523_ Critical hit. 02523_ Lgt. Treads destroyed. 02527_ Penetrated by HV Slug. Map ----- +----------------------------------------------------+ | ?????#" """#??????????????????????????? | | ?????#" """#??????????????????????????? | | ?????#" """#??????????????????????????? | | ?????#" """##?????????????????????????? | | ?????## """""?????????????????????????? | | ??????# """##?????????????????????????? | | ??????#" "X" """""?????????????????????????? | | ??????#" """ #??????????????????????????? | | ??????#" """""""""#??????????????????????????? | | ?????##" ###########??????????????????????????? | | ????##"" #????????????????????????????????????? | | #####"" #????????????????????????????????????? | | """"""" ##???????????????????????????????????? | | "" " "" ##???##########?????????????????????? | | "" " #####"""""""""?#???????????????????? | | " """ """"##??????????????????? | | "" " #??????????????????? | | """#??????????????????? | | "a"#???????????#####??? | | " "##?????????##" #??? | | ""###???????#" #??? | | """""" """#####??##" ##?? | | ######""" ; #### ### | | ""##????#####""" ; # | | "##?????????## !!! | | ##???????????#" !!%@! | | #???????????#; !!! g ## | | #######??####" ! #### | | ## ####""" "#?#""""" | | """" "##?###### | | ###???????? | | #?????????? | | " ; ??????????? | | " "" """ ""# #??????????? | | ""## ##""" " " ""#"%%% %%%"##? #???????????? | | ""#### ######""" """## ##???????????????? | | """##??# #????###""""###;;;;;;;#????????????????? | | """#??## ####???######??# ##????????????????? | | ""##??#! "!#????????????######?????????????????? | | "#????#" !#???????????????????????????????????? | | #?????#" "#???????????????????????????????????? | | ??????#!!""!"#???????????????????????????????????? | | ??????########???????????????????????????????????? | | ?????????????????????????????????????????????????? | | ?????????????????????????????????????????????????? | | ?????????????????????????????????????????????????? | | ?????????????????????????????????????????????????? | | ?????????????????????????????????????????????????? | | ?????????????????????????????????????????????????? | | ?????????????????????????????????????????????????? | +----------------------------------------------------+ Best States ------------- Heat Dissipation 39 Energy Generation 19 Energy Capacity 250 Matter Stores 300 Matter Capacity 300 Sight Range 16 Terrain Scan Range 16 Terrain Scan Density 10 Evasion (%) 40 Recoil Reduction 2 Item Schematics ----------------- Hcp. Storage Unit | -10/Materials | Hacked Hcp. Matter Pod | -10/Materials | Hacked Hcp. Battery | -10/Materials | Hacked Robot Schematics ------------------ None Fabricated ------------ Nothing Alien Tech Used ----------------- None Achievements -------------- None Challenges ------------ None Game ------ Seed ForceTractorClaws Manual? 0 Play Time 00:19:21 Cumulative 228.4 hours Start 2020.06.22 @ 09:21:05 End 2020.06.22 @ 09:40:18 Sessions 1 Manual Loads 0 Difficulty Rogue Special Mode None Game No. 299 Rogue 288 Adventurer 11 Explorer 0 Win Type - Total 0 Types 0/0/0/0/0/0/0 Lore% 53 Gallery% 67 Achievement% 45 Wizard Run 0 Options --------- ASCII 0 Keyboard 1 Movement Numpad Keybinds 0 Fullscreen 1 Font 12/Terminus Map View 83x54 Tactical HUD 1 Map Filters NONE Filters NONE Steam 1 RUN: 092eb7f4-38a3-4206-9db4-3352a7aaae65